bitfinex/quotes_SOLUSD_20250624
["timestamp","ask_amount","ask_price","bid_price","bid_amount"]
[1750729898694,8.33333333,143.83,143.82,53.21638472]
[1750729899002,8.33333333,143.83,143.82,51.60278472]
[1750729899211,8.33333333,143.83,143.82,32.4]
[1750729899417,8.33333333,143.83,143.82,6.4]
[1750729899893,14.05705353,143.83,143.82,6.4]
[1750729900702,8.33333333,143.83,143.82,6.4]
[1750729901202,8.33333333,143.83,143.82,13.35313586]
[1750729902414,8.33333333,143.83,143.82,39.35313586]
[1750729908996,5.7237202,143.86,143.82,39.35313586]
[1750729909318,5.7237202,143.88,143.83,18.64964886]
[1750729909496,5.7237202,143.86,143.82,39.35313586]
[1750729909899,5.7237202,143.85,143.82,39.35313586]
[1750729913101,1.5806,143.89,143.82,39.35313586]
[1750729913302,5.7237202,143.85,143.82,39.35313586]
[1750729913497,5.7237202,143.83,143.81,6.34]
[1750729913812,5.7237202,143.82,143.81,6.34]
[1750729916399,7.3501202,143.82,143.76,156.90568055]
[1750729916598,7.3501202,143.82,143.77,6.34]
[1750729916599,1.6264,143.82,143.77,6.34]
[1750729917033,6.65366157,143.81,143.77,6.34]
[1750729917215,11.78964815,143.81,143.77,6.34]
[1750729917412,5.13598658,143.8,143.77,6.34]
[1750729917820,5.7237202,143.78,143.77,6.34]
[1750729920229,5.13598658,143.81,143.77,6.34]
[1750729920437,5.7237202,143.78,143.77,6.34]
[1750729920628,5.7237202,143.79,143.77,6.34]
[1750729921203,5.7237202,143.8,143.77,13.295554]
[1750729921702,5.7237202,143.81,143.77,13.295554]
[1750729922420,5.7237202,143.8,143.77,13.295554]
[1750729922619,5.7237202,143.8,143.77,102.695554]
[1750729922932,5.7237202,143.81,143.77,102.695554]
[1750729926711,32.5221,143.85,143.77,102.695554]
[1750729926712,5.7237202,143.82,143.78,18.64964886]
[1750729927920,5.7237202,143.82,143.79,6.95458654]
[1750729928918,5.7237202,143.81,143.79,6.95458654]
[1750729930333,5.7237202,143.82,143.79,6.95458654]
[1750729931234,26.14216157,143.87,143.79,6.95458654]
[1750729931534,5.7237202,143.83,143.79,6.95458654]
[1750729932315,26.14216157,143.87,143.79,6.95458654]
[1750729932534,5.7237202,143.83,143.79,6.95458654]
[1750729933232,5.7237202,143.85,143.8,24.37336906]
[1750729933440,5.7237202,143.85,143.81,5.7237202]
[1750729933757,5.7237202,143.85,143.8,113.77336906]
[1750729933942,33.7396,143.89,143.8,113.77336906]
[1750729933943,5.7237202,143.84,143.8,113.77336906]
[1750729934447,5.7237202,143.85,143.81,6.95361935]
[1750729935034,5.7237202,143.85,143.81,24.33766774]
[1750729936328,5.7237202,143.83,143.81,6.95361935]
[1750729936736,5.7237202,143.84,143.81,6.95361935]
[1750729937631,5.7237202,143.85,143.81,6.95361935]
[1750729938645,5.7237202,143.84,143.81,6.95361935]
[1750729938838,33.7396,143.89,143.81,6.95361935]
[1750729939142,5.7237202,143.84,143.81,6.95361935]
[1750729940347,5.7237202,143.84,143.82,13.29272345]
[1750729942252,5.7237202,143.85,143.82,13.29272345]
[1750729943744,5.7237202,143.86,143.82,13.29272345]
[1750729944945,5.7237202,143.87,143.82,19.01644365]
[1750729945139,5.7237202,143.87,143.82,108.41644365]
[1750729945355,5.7237202,143.87,143.82,125.79928331]
[1750729945562,5.7237202,143.85,143.82,102.69272345]
[1750729946860,27.5307,143.89,143.82,95.74]
[1750729946861,5.7237202,143.84,143.82,95.74]
[1750729947037,5.7237202,143.84,143.82,6.34]
[1750729947561,5.7237202,143.84,143.77,6.3]
[1750729947562,33.3585202,143.83,143.77,6.3]
[1750729947768,5.7237202,143.79,143.77,6.3]
[1750729948564,5.7237202,143.79,143.77,13.25539186]
[1750729949638,5.7237202,143.79,143.77,6.3]
[1750729950271,5.7237202,143.8,143.77,13.25548646]
[1750729952470,5.7237202,143.79,143.77,13.25548646]
[1750729952674,5.7237202,143.79,143.77,6.3]
[1750729952964,5.7237202,143.78,143.77,6.3]
[1750729958651,32.77078658,143.83,143.77,6.3]
[1750729958850,5.7237202,143.79,143.77,6.3]
[1750729959565,5.7237202,143.8,143.77,13.25553561]
[1750729960186,5.86588177,143.84,143.77,13.25553561]
[1750729960187,5.7237202,143.81,143.77,13.25553561]
[1750729960856,5.7237202,143.8,143.77,13.25553561]
[1750729961254,31.86588177,143.84,143.77,13.25553561]
[1750729961455,5.7237202,143.81,143.77,102.65553561]
[1750729962186,5.7237202,143.81,143.77,108.37925581]
[1750729962552,5.7237202,143.82,143.77,125.76814083]
[1750729962757,5.7237202,143.83,143.78,24.37336906]
[1750729963172,5.7237202,143.83,143.78,30.63676906]
[1750729963374,5.7237202,143.83,143.79,6.95458654]
[1750729963990,5.7237202,143.82,143.79,6.95458654]
[1750729965566,5.7237202,143.81,143.79,6.95458654]
[1750729969861,5.7237202,143.8,143.78,6.95493191]
[1750729971988,5.13598658,143.85,143.78,6.95493191]
[1750729972169,26.0,143.86,143.78,12.67865211]
[1750729972170,5.7237202,143.83,143.78,12.67865211]
[1750729972369,26.0,143.86,143.79,5.7237202]
[1750729972577,5.7237202,143.84,143.79,5.7237202]
[1750729973185,5.7237202,143.84,143.8,18.64964886]
[1750729974064,5.7237202,143.84,143.81,6.95361935]
[1750729974676,5.7237202,143.83,143.81,6.95361935]
[1750729974874,5.7237202,143.83,143.8,96.35398408]
[1750729975097,5.7237202,143.82,143.8,96.35398408]
[1750729976675,5.7237202,143.81,143.8,89.4]
[1750729976875,5.7237202,143.81,143.78,6.95475459]
[1750729977988,5.13598658,143.85,143.78,6.95475459]
[1750729978185,27.77616157,143.87,143.78,6.95475459]
[1750729978186,5.7237202,143.82,143.78,102.65475459]
[1750729979174,5.7237202,143.81,143.78,102.65475459]
[1750729979667,5.13598658,143.85,143.78,102.65475459]
[1750729979900,5.7237202,143.82,143.78,102.65475459]
[1750729980194,5.7237202,143.82,143.79,6.3]
[1750729980588,5.7237202,143.82,143.78,96.35475459]
[1750729980784,5.7237202,143.82,143.78,102.65475459]
[1750729981375,5.7237202,143.82,143.78,95.7]
[1750729981576,27.77616157,143.87,143.78,95.7]
[1750729981577,5.7237202,143.81,143.78,95.7]
[1750729981784,5.7237202,143.81,143.78,6.3]
[1750729982188,5.7237202,143.82,143.78,13.25498716]
[1750729982386,5.7237202,143.82,143.78,102.65498716]
[1750729982893,10.85970678,143.85,143.8,5.7237202]
[1750729983096,5.7237202,143.84,143.8,89.4]
[1750729984390,5.7237202,143.84,143.81,6.95361935]
[1750729985291,27.634,143.87,143.81,6.95361935]
[1750729985489,5.7237202,143.84,143.81,6.95361935]
[1750729985889,1.634,143.87,143.81,6.95361935]
[1750729985890,5.7237202,143.85,143.81,6.95361935]
[1750729986402,5.13598658,143.87,143.81,6.95361935]
[1750729986601,5.7237202,143.87,143.82,5.7237202]
[1750729986987,5.7237202,143.85,143.81,13.44311935]
[1750729987202,31.13598658,143.88,143.81,13.44311935]
[1750729987386,5.7237202,143.85,143.81,13.44311935]
[1750729987902,5.7237202,143.84,143.81,6.95361935]
[1750729988410,26.0,143.88,143.81,6.95361935]
[1750729988587,5.7237202,143.84,143.81,6.95361935]
[1750729988988,26.0,143.88,143.78,32.3]
[1750729988989,5.7237202,143.82,143.78,32.3]
[1750729989188,5.13598658,143.87,143.78,6.3]
[1750729989189,5.7237202,143.81,143.78,6.3]
[1750729990209,5.7237202,143.81,143.78,13.25506326]
[1750729990705,5.7237202,143.82,143.78,13.25506326]
[1750729990910,5.7237202,143.81,143.78,13.25506326]
[1750729991204,5.7237202,143.82,143.78,13.25506326]
[1750729991889,5.7237202,143.84,143.79,24.37336906]
[1750729992086,5.7237202,143.85,143.8,5.7237202]
[1750729992695,5.13598658,143.86,143.8,5.7237202]
[1750729992900,5.7237202,143.85,143.8,5.7237202]
[1750729993088,5.7237202,143.85,143.81,6.95361935]
[1750729994214,5.13598658,143.87,143.83,5.7237202]
[1750729994410,5.7237202,143.85,143.81,6.95361935]
[1750729994717,5.7237202,143.82,143.79,6.3]
[1750729994884,5.7237202,143.8,143.79,6.3]
[1750729995085,5.7237202,143.81,143.79,6.3]
[1750729995292,5.7237202,143.8,143.79,6.3]
[1750729996094,5.7237202,143.84,143.79,6.3]
[1750729996407,5.7237202,143.8,143.79,6.3]
[1750729997211,5.7237202,143.8,143.79,13.25458654]
[1750729997898,5.7237202,143.81,143.79,13.25458654]
[1750730004298,5.7237202,143.82,143.79,13.25458654]
[1750730004497,5.13598658,143.84,143.79,13.25458654]
[1750730004498,5.13598658,143.83,143.79,13.25458654]
[1750730004719,5.7237202,143.82,143.79,13.25458654]
[1750730004916,5.13598658,143.84,143.79,30.64105291]
[1750730005116,5.7237202,143.84,143.8,18.64964886]
[1750730005414,5.7237202,143.85,143.8,24.37336906]
[1750730006617,5.20456978,143.86,143.8,24.37336906]
[1750730006794,5.7237202,143.84,143.8,24.37336906]
[1750730006999,5.7237202,143.84,143.81,6.95361935]
[1750730007802,5.7237202,143.83,143.81,6.95361935]
[1750730009027,5.7237202,143.83,143.8,6.95410292]
[1750730011542,26.0,143.87,143.8,6.95410292]
[1750730011543,5.7237202,143.84,143.8,6.95410292]
[1750730012112,5.7237202,143.83,143.8,6.95410292]
[1750730015421,5.7237202,143.82,143.8,6.95410292]
[1750730015811,5.7237202,143.82,143.79,95.7]
[1750730016019,5.7237202,143.81,143.79,95.7]
[1750730016322,5.7237202,143.8,143.79,6.3]
[1750730016919,5.20494059,143.83,143.79,6.3]
[1750730017113,5.7237202,143.8,143.79,6.3]
[1750730017316,5.7237202,143.8,143.76,130.90568055]
[1750730017522,5.7237202,143.77,143.76,130.90568055]
[1750730017712,1.5209,143.78,143.76,130.45781197]
[1750730017713,6.72529415,143.78,143.76,130.45781197]
[1750730017919,5.7237202,143.77,143.76,130.45781197]
[1750730020930,5.7237202,143.77,143.76,137.41384981]
[1750730021325,5.7237202,143.77,143.76,130.45781197]
[1750730021505,5.7237202,143.77,143.76,137.41384981]
[1750730022130,5.20439415,143.8,143.76,137.41384981]
[1750730022325,5.20439415,143.81,143.76,137.41384981]
[1750730022626,5.7237202,143.8,143.76,137.41384981]
[1750730023208,5.7237202,143.8,143.76,154.80394441]
[1750730026345,5.7237202,143.8,143.76,160.52766461]
[1750730027122,5.7237202,143.81,143.76,160.52766461]
[1750730027335,5.7237202,143.81,143.76,189.28766461]
[1750730028125,5.7237202,143.81,143.78,24.34274585]
[1750730028331,5.7237202,143.81,143.78,30.64274585]
[1750730028532,5.7237202,143.79,143.78,6.3]
[1750730030015,5.7237202,143.79,143.76,130.45781197]
[1750730030324,5.7237202,143.77,143.76,130.45781197]
[1750730041166,11.58960197,143.77,143.76,130.45781197]
[1750730041368,11.58960197,143.77,143.67,142.5487]
[1750730041369,0.14216157,143.76,143.69,6.28]
[1750730041536,0.14216157,143.76,143.69,13.23934058]
[1750730041537,5.7237202,143.72,143.69,13.23934058]
[1750730041857,5.7237202,143.71,143.69,13.23934058]
[1750730042167,5.7237202,143.76,143.69,6.28]
[1750730042168,5.7237202,143.7,143.69,6.28]
[1750730043241,5.7237202,143.7,143.69,13.23942654]
[1750730043631,5.7237202,143.7,143.69,6.28]
[1750730044667,26.0,143.74,143.69,6.28]
[1750730044859,5.7237202,143.71,143.69,13.23934873]
[1750730045063,26.0,143.73,143.69,13.23934873]
[1750730045384,1.72146157,143.75,143.69,13.23934873]
[1750730045385,5.7237202,143.72,143.69,13.23934873]
[1750730049383,5.7237202,143.73,143.69,13.23934873]
[1750730051852,5.7237202,143.73,143.69,6.28]
[1750730052073,5.7237202,143.71,143.69,6.28]
[1750730052290,5.7237202,143.7,143.69,6.28]
[1750730053060,26.0,143.74,143.69,6.28]
[1750730053264,5.1699763,143.77,143.71,5.7237202]
[1750730053468,26.0,143.77,143.71,6.958458]
[1750730053683,5.7237202,143.72,143.7,6.95880748]
[1750730054005,5.7237202,143.76,143.69,13.23942095]
[1750730054006,5.7237202,143.71,143.69,13.23942095]
[1750730054362,5.7237202,143.72,143.69,13.23942095]
[1750730055456,5.7237202,143.71,143.69,6.28]
[1750730055863,5.7237202,143.7,143.69,6.28]
[1750730057782,5.7237202,143.71,143.69,6.28]
[1750730059958,5.7237202,143.72,143.69,13.23934104]
[1750730060367,5.7237202,143.71,143.69,6.28]
[1750730061367,5.7237202,143.7,143.69,6.28]
[1750730061683,26.0,143.75,143.69,6.28]
[1750730061684,5.7237202,143.71,143.69,6.28]
[1750730061873,26.0,143.75,143.69,6.28]
[1750730061874,5.7237202,143.7,143.69,6.28]
[1750730062782,5.7237202,143.71,143.69,6.28]
[1750730063267,5.7237202,143.71,143.69,13.23929081]
[1750730063468,5.7237202,143.71,143.69,6.28]
[1750730064264,5.7237202,143.7,143.69,6.28]
[1750730067885,5.7237202,143.7,143.65,89.4]
[1750730068098,5.7237202,143.66,143.64,6.3]
[1750730068265,5.7237202,143.65,143.64,6.3]
[1750730068464,0.14216157,143.69,143.64,13.26181911]
[1750730068687,5.7237202,143.67,143.64,13.26181911]
[1750730069481,5.7237202,143.66,143.64,13.26181911]
[1750730069883,5.7237202,143.66,143.64,6.3]
[1750730071610,5.7237202,143.65,143.64,6.3]
[1750730074495,5.7237202,143.68,143.64,6.3]
[1750730074703,5.7237202,143.65,143.64,6.3]
[1750730081811,0.14216157,143.69,143.64,6.3]
[1750730082015,5.7237202,143.67,143.64,6.3]
[1750730082307,5.7237202,143.66,143.64,6.3]
[1750730085186,5.7237202,143.67,143.64,13.26177498]
[1750730090794,5.7237202,143.66,143.64,13.26177498]
[1750730091315,26.0,143.69,143.64,13.26177498]
[1750730091611,5.7237202,143.66,143.64,13.26177498]
[1750730091800,5.7237202,143.67,143.64,13.26177498]
[1750730092816,5.7237202,143.66,143.64,13.26177498]
[1750730098818,26.0,143.7,143.64,13.26177498]
[1750730098819,5.7237202,143.67,143.64,13.26177498]
[1750730099019,5.7237202,143.68,143.64,13.26177498]
[1750730099598,5.7237202,143.69,143.64,18.98549518]
[1750730099915,5.7237202,143.68,143.64,102.66177498]
[1750730101219,5.7237202,143.67,143.64,102.66177498]
[1750730101648,5.7237202,143.68,143.64,102.66177498]
[1750730103004,7.7949,143.74,143.67,24.37336906]
[1750730103005,5.17881033,143.74,143.67,24.37336906]
[1750730103319,5.7237202,143.73,143.68,5.7237202]
[1750730103739,5.7237202,143.72,143.68,5.7237202]
[1750730104024,5.7237202,143.72,143.69,6.95942654]
[1750730105107,5.7237202,143.72,143.68,6.95991091]
[1750730105314,31.17881033,143.75,143.68,12.68363111]
[1750730105530,5.7237202,143.73,143.68,30.08340839]
[1750730105725,5.7237202,143.73,143.69,5.7237202]
[1750730106033,26.0,143.75,143.7,12.0037202]
[1750730106034,5.7237202,143.75,143.7,12.0037202]
[1750730107002,5.7237202,143.75,143.71,24.37336906]
[1750730107206,5.7237202,143.76,143.72,6.95797383]
[1750730107542,5.7237202,143.76,143.72,12.68169403]
[1750730108032,5.7237202,143.76,143.72,6.95797383]
[1750730108340,5.7237202,143.75,143.71,31.33166916]
[1750730108725,5.7237202,143.74,143.7,12.9008]
[1750730108912,5.1877446,143.77,143.7,109.25960517]
[1750730109112,5.7237202,143.74,143.7,114.98332537]
[1750730113126,5.7237202,143.74,143.7,102.3008]
[1750730114743,5.7237202,143.74,143.7,12.9008]
[1750730117829,5.1877446,143.77,143.7,19.8596877]
[1750730118027,5.7237202,143.74,143.7,19.8596877]
[1750730118231,5.7237202,143.74,143.7,12.9008]
[1750730118613,5.1877446,143.77,143.7,12.9008]
[1750730118919,5.7237202,143.74,143.7,12.9008]
[1750730119314,5.7237202,143.74,143.7,19.85968531]
[1750730119517,5.1877446,143.77,143.67,6.28]
[1750730119518,5.7237202,143.71,143.67,6.28]
[1750730119742,5.7237202,143.7,143.67,6.28]
[1750730120256,26.0,143.75,143.67,6.28]
[1750730120454,26.0,143.75,143.68,24.37336906]
[1750730120657,5.7237202,143.72,143.68,24.37336906]
[1750730120847,5.7237202,143.72,143.68,113.77336906]
[1750730121042,5.7237202,143.72,143.68,108.04964886]
[1750730122138,5.7237202,143.72,143.69,6.95942654]
[1750730122535,26.0,143.75,143.69,6.95942654]
[1750730122736,5.7237202,143.73,143.69,6.95942654]
[1750730123142,5.7237202,143.72,143.69,6.95942654]
[1750730124268,5.7237202,143.73,143.69,6.95942654]
[1750730124750,5.7237202,143.72,143.69,6.95942654]
[1750730124943,26.0,143.75,143.69,6.95942654]
[1750730125141,5.7237202,143.72,143.69,96.35942654]
[1750730125454,5.7237202,143.74,143.69,102.08314674]
[1750730125756,5.7237202,143.74,143.7,5.7237202]
[1750730126259,5.7237202,143.74,143.69,12.68314674]
[1750730127456,5.7237202,143.73,143.69,6.95942654]
[1750730127661,5.7237202,143.72,143.68,51.60940872]
[1750730128658,5.7237202,143.71,143.68,32.95975986]
[1750730128860,5.7237202,143.7,143.67,102.64023995]
[1750730130851,5.7237202,143.69,143.67,95.68]
[1750730131064,5.7237202,143.69,143.67,6.28]
[1750730131581,5.7237202,143.69,143.67,13.24034343]
[1750730131945,31.18055567,143.75,143.68,24.37336906]
[1750730131946,5.7237202,143.73,143.68,24.37336906]
[1750730132147,5.7237202,143.74,143.69,5.7237202]
[1750730132346,5.7237202,143.74,143.68,24.37336906]
[1750730132548,26.0,143.75,143.68,24.37336906]
[1750730132854,5.7237202,143.74,143.7,6.95894224]
[1750730133762,5.7237202,143.76,143.71,32.37626906]
[1750730134875,5.7237202,143.76,143.72,6.95797383]
[1750730135173,5.7237202,143.76,143.73,6.26]
[1750730135553,5.7237202,143.75,143.73,6.26]
[1750730135753,5.7237202,143.76,143.73,6.26]
[1750730135953,5.7237202,143.75,143.73,6.26]
[1750730136471,5.7237202,143.75,143.73,13.2172133]
[1750730136687,5.7237202,143.76,143.73,13.2172133]
[1750730137770,23.98174264,143.77,143.73,13.2172133]
[1750730137955,18.25802244,143.77,143.74,18.64964886]
[1750730138150,18.25802244,143.77,143.74,113.77336906]
[1750730138592,18.25802244,143.77,143.75,6.95652173]
[1750730139175,18.25802244,143.77,143.75,102.08024193]
[1750730140281,18.25802244,143.77,143.75,96.35652173]
[1750730140650,18.25802244,143.77,143.76,18.64964886]
[1750730142483,18.25802244,143.77,143.76,25.6056867]
[1750730144293,18.25802244,143.77,143.76,115.0056867]
[1750730147482,18.25802244,143.77,143.76,120.7294069]
[1750730148693,18.25802244,143.77,143.76,89.4]
[1750730148905,18.25802244,143.77,143.73,6.26]
[1750730148906,23.98174264,143.77,143.73,6.26]
[1750730149080,5.7237202,143.75,143.73,6.26]
[1750730149274,18.25802244,143.77,143.73,6.26]
[1750730149583,5.7237202,143.76,143.73,6.26]
[1750730150208,5.7237202,143.76,143.73,13.21736091]
[1750730151223,23.98174264,143.77,143.73,13.21736091]
[1750730151524,5.7237202,143.76,143.73,13.21736091]
[1750730151686,18.25802244,143.77,143.73,13.21736091]
[1750730152019,5.7237202,143.76,143.73,13.21736091]
[1750730152208,18.25802244,143.77,143.73,13.21736091]
[1750730152411,5.7237202,143.76,143.73,13.21736091]
[1750730152809,18.25802244,143.77,143.74,24.37336906]
[1750730153419,18.25802244,143.77,143.75,5.7237202]
[1750730153904,18.25802244,143.77,143.76,31.3294069]
[1750730157510,5.7237202,143.81,143.76,31.3294069]
[1750730157706,5.7237202,143.81,143.77,5.7237202]
[1750730158412,5.7237202,143.81,143.78,6.95507024]
[1750730159222,5.7237202,143.8,143.77,6.95539194]
[1750730160115,5.7237202,143.81,143.77,6.95539194]
[1750730160629,5.7237202,143.8,143.77,6.95539194]
[1750730161416,5.7237202,143.82,143.77,12.67911214]
[1750730161793,5.7237202,143.81,143.77,6.95539194]
[1750730162022,5.7237202,143.81,143.77,96.35539194]
[1750730162497,5.7237202,143.82,143.77,102.07911214]
[1750730164320,26.0,143.83,143.77,102.07911214]
[1750730164534,5.7237202,143.84,143.79,5.7237202]
[1750730164710,6.80023944,143.87,143.8,11.9837202]
[1750730164711,5.7237202,143.85,143.8,11.9837202]
[1750730165019,1.615,143.87,143.8,11.9837202]
[1750730165020,26.0,143.87,143.81,5.7237202]
[1750730165204,5.7237202,143.86,143.81,5.7237202]
[1750730165614,18.37764196,143.88,143.83,18.64964886]
[1750730165803,5.7237202,143.87,143.83,18.64964886]
[1750730166204,24.10136216,143.88,143.83,5.7237202]
[1750730166512,24.10136216,143.88,143.84,6.95216907]
[1750730166710,5.7237202,143.87,143.84,6.95216907]
[1750730167018,24.10136216,143.88,143.84,6.95216907]
[1750730167221,18.37764196,143.88,143.84,12.67588927]
[1750730167519,18.37764196,143.88,143.86,5.7237202]
[1750730167696,18.37764196,143.88,143.87,11.9837202]
[1750730167896,5.7237202,143.91,143.87,11.9837202]
[1750730168115,5.7237202,143.94,143.88,18.64964886]
[1750730168303,8.33333333,143.96,143.89,5.7237202]
[1750730168508,14.05705353,143.96,143.91,12.67250763]
[1750730169003,5.7237202,143.95,143.91,12.67250763]
[1750730169201,14.05705353,143.96,143.91,12.67250763]
[1750730169416,5.7237202,143.95,143.91,6.94878743]
[1750730169914,8.33333333,143.96,143.91,12.67250763]
[1750730170103,8.33333333,143.96,143.93,5.7237202]
[1750730170322,8.33333333,143.96,143.94,6.26]
[1750730170620,8.33333333,143.96,143.95,6.94685654]
[1750730172606,8.33333333,143.96,143.95,12.67057674]
[1750730173006,8.33333333,143.96,143.95,31.3202256]
[1750730173217,8.33333333,143.96,143.94,13.20725403]
[1750730173398,8.33333333,143.96,143.94,6.26]
[1750730173603,8.33333333,143.96,143.94,18.93083331]
[1750730173823,8.33333333,143.96,143.95,6.24]
[1750730175616,8.33333333,143.96,143.95,13.18685654]
[1750730175808,8.33333333,143.96,143.95,18.91057674]
[1750730176009,8.33333333,143.96,143.95,13.18685654]
[1750730176213,8.33333333,143.96,143.95,6.24]
[1750730176433,14.05705353,143.96,143.95,6.24]
[1750730176610,8.33333333,143.96,143.95,6.24]
[1750730177012,14.05705353,143.96,143.95,6.24]
[1750730177214,8.33333333,143.96,143.95,6.24]
[1750730178217,8.33333333,143.96,143.95,13.18685654]
[1750730178727,14.05705353,143.96,143.95,6.24]
[1750730179116,8.33333333,143.96,143.95,13.18685654]
[1750730180108,8.33333333,143.96,143.95,6.24]
[1750730181035,8.33333333,143.96,143.95,13.18685654]
[1750730183134,8.33333333,143.96,143.95,6.24]
[1750730183337,8.33333333,143.96,143.93,96.34760161]
[1750730183338,14.05705353,143.96,143.93,95.64]
[1750730183631,5.7237202,143.95,143.93,6.24]
[1750730186239,26.14216157,143.99,143.93,6.24]
[1750730186240,5.7237202,143.94,143.93,6.24]
[1750730186826,5.7237202,143.96,143.93,6.24]
[1750730187338,5.7237202,143.97,143.93,95.64]
[1750730188024,5.7237202,143.96,143.93,95.64]
[1750730188341,5.7237202,143.97,143.93,95.64]
[1750730189216,5.7237202,143.96,143.93,95.64]
[1750730189554,26.0,143.99,143.93,95.64]
[1750730189555,5.7237202,143.95,143.93,95.64]
[1750730189714,5.7237202,143.94,143.93,6.24]
[1750730189916,5.7237202,143.95,143.93,6.24]
[1750730190539,26.0,143.99,143.93,6.24]
[1750730190540,5.7237202,143.94,143.93,6.24]
[1750730191824,5.86588177,143.94,143.88,6.24]
[1750730192027,5.7237202,143.89,143.88,6.24]
[1750730192227,26.0,143.94,143.88,6.24]
[1750730192536,5.7237202,143.9,143.88,6.24]
[1750730193939,5.7237202,143.9,143.88,13.19006049]
[1750730194651,26.0,143.94,143.88,13.19006049]
[1750730194947,5.7237202,143.91,143.88,13.19006049]
[1750730195146,5.7237202,143.92,143.88,13.19006049]
[1750730195354,26.0,143.94,143.88,13.19006049]
[1750730195355,26.0,143.96,143.89,18.64964886]
[1750730195526,5.7237202,143.93,143.89,24.37336906]
[1750730195926,1.5898,143.97,143.9,5.7237202]
[1750730196252,5.7237202,143.95,143.9,5.7237202]
[1750730196951,1.5898,143.97,143.89,108.04964886]
[1750730196952,26.0,143.97,143.91,5.7237202]
[1750730197244,5.7237202,143.96,143.91,5.7237202]
[1750730197448,5.7237202,143.95,143.91,6.94878743]
[1750730197655,5.7237202,143.94,143.91,6.94878743]
[1750730198140,5.7237202,143.95,143.91,6.94878743]
[1750730200228,5.7237202,143.96,143.91,12.67250763]
[1750730200435,5.7237202,143.96,143.91,102.07250763]
[1750730200649,5.7237202,143.95,143.91,102.07250763]
[1750730201649,26.0,143.97,143.91,102.07250763]
[1750730201650,5.7237202,143.96,143.91,102.07250763]
[1750730201846,5.7237202,143.96,143.92,5.7237202]
[1750730202441,5.7237202,143.96,143.93,6.94782185]
[1750730202652,5.7237202,143.97,143.93,6.94782185]
[1750730202857,5.7237202,143.95,143.94,6.24]
[1750730205131,5.7237202,143.95,143.9,6.24]
[1750730205438,5.7237202,143.92,143.9,6.24]
[1750730206781,26.0,143.99,143.91,12.67250763]
[1750730207054,5.7237202,143.95,143.91,6.94878743]
[1750730207251,5.7237202,143.95,143.92,18.64964886]
[1750730207947,26.0,143.99,143.92,18.64964886]
[1750730208360,5.7237202,143.96,143.92,18.64964886]
[1750730208528,5.7237202,143.97,143.92,24.37336906]
[1750730208734,5.7237202,143.98,143.93,5.7237202]
[1750730208954,31.15031444,143.99,143.93,24.31737649]
[1750730208955,5.7237202,143.97,143.93,24.31737649]
[1750730209256,5.7237202,143.94,143.91,6.94878743]
[1750730209466,5.7237202,143.93,143.91,6.94878743]
[1750730209667,5.7237202,143.94,143.91,6.94878743]
[1750730210166,5.15031444,143.97,143.93,5.7237202]
[1750730210466,5.7237202,143.98,143.93,5.7237202]
[1750730210845,5.7237202,143.96,143.93,6.94782185]
[1750730211048,10.90889615,144.0,143.92,6.94820569]
[1750730211049,5.7237202,143.94,143.92,6.94820569]
[1750730211261,31.86588177,144.0,143.9,13.18911421]
[1750730211262,5.7237202,143.93,143.9,13.18911421]
[1750730211565,5.7237202,143.92,143.9,13.18911421]
[1750730211854,5.7237202,143.93,143.9,13.18911421]
[1750730212063,5.7237202,143.92,143.9,13.18911421]
[1750730212235,5.7237202,143.93,143.9,102.58911421]
[1750730212849,5.7237202,143.92,143.9,102.58911421]
[1750730213160,5.7237202,143.91,143.9,95.64]
[1750730213346,5.7237202,143.91,143.9,6.24]
[1750730214870,5.18954524,143.96,143.9,13.1892101]
[1750730215061,5.7237202,143.92,143.9,6.24]
[1750730215570,5.7237202,143.91,143.9,6.24]
[1750730220968,5.7237202,143.91,143.9,13.18927032]
[1750730221472,5.7237202,143.92,143.9,13.18927032]
[1750730222149,5.7237202,143.92,143.9,6.24]
[1750730222354,5.7237202,143.91,143.9,6.24]
[1750730222854,5.7237202,143.92,143.9,13.18927032]
[1750730223572,5.7237202,143.91,143.9,13.18927032]
[1750730224161,5.1894112,143.95,143.9,13.18927032]
[1750730224363,5.7237202,143.94,143.9,13.18927032]
[1750730224564,5.7237202,143.95,143.91,18.64964886]
[1750730225875,5.7237202,143.95,143.92,6.94830461]
[1750730226362,31.19065067,143.97,143.92,6.94830461]
[1750730226676,5.7237202,143.95,143.92,6.94830461]
[1750730228252,5.7237202,143.93,143.9,95.64]
[1750730228579,5.7237202,143.91,143.9,89.4]
[1750730228876,5.7237202,143.91,143.89,13.18966466]